{"text_format":"3","workbook":"xlsx","n_sheets":3,"sheets":["Agenda Diária","Agendador de Eventos","Intervalos de Tempo"],"not_rendered":{"defined_names":21},"read":"whole","date_system":"1900"}

{"sheet":"Agenda Diária","index":0,"n_rows":76,"n_cols":13,"rows_kept":76,"merged":[[0,1,0,2],[1,1,5,2],[2,12,4,12],[3,7,4,7],[5,12,7,12],[6,1,8,2],[8,12,10,12],[9,7,10,7],[10,1,10,2],[11,12,13,12],[14,12,16,12],[15,7,16,7],[17,12,19,12],[18,1,18,2],[20,12,22,12],[21,7,22,7],[23,12,25,12],[24,1,24,2],[25,1,25,2],[26,7,27,7],[26,12,28,12],[29,12,31,12],[31,7,32,7],[32,12,34,12]]}
[null,"Agenda Diária"]
[null,{"$f":"IFERROR(DAY(ValdaData),\"\")","v":20},null,null,"Hora",{"$f":"IFERROR(UPPER(TEXT(DATE(AnodoRelatório,NúmeroDoMês,DiadoRelatório),\"D-MMM-AA\")),\"\")","v":"20-JUN-22"},null,"SUA SEMANA",{"$nulls":3},"ANOTAÇÕES/TAREFAS PENDENTES"]
[{"$nulls":4},"Hora","Descrição",null,{"$f":"IFERROR(TEXT(DATEVALUE(ValdaData)+1,\"dddd\"),\"\")","v":"terça-feira"},{"$f":"IFERROR(INDEX(AgendadorDeEventos[],MATCH($H$6&\"|\"&ROW(A1),AgendadorDeEventos[VALOR EXCLUSIVO (CALCULADO)],0),2),\"\")","v":""},{"$f":"IFERROR(INDEX(AgendadorDeEventos[],MATCH($H$6&\"|\"&ROW(A1),AgendadorDeEventos[VALOR EXCLUSIVO (CALCULADO)],0),3),\"\")","v":""},null,null,"Passar na lavanderia"]
[{"$nulls":4},{"$f":"'Intervalos de Tempo'!E3","v":"06:00:00"},{"$f":"IFERROR(INDEX(AgendadorDeEventos[],MATCH(DATEVALUE(ValdaData)&AgendaDiária[[#This Row],[Hora]],ProcurarDataEHora,0),3),\"\")","v":"Acordar"},null,{"$f":"IFERROR(TEXT(DATEVALUE(ValdaData)+1,\"d\"),\"\")","v":"21"},{"$f":"IFERROR(INDEX(AgendadorDeEventos[],MATCH($H$6&\"|\"&ROW(A2),AgendadorDeEventos[VALOR EXCLUSIVO (CALCULADO)],0),2),\"\")","v":"06:30:00"},{"$f":"IFERROR(INDEX(AgendadorDeEventos[],MATCH($H$6&\"|\"&ROW(A2),AgendadorDeEventos[VALOR EXCLUSIVO (CALCULADO)],0),3),\"\")","v":"Café da manhã"}]
[{"$nulls":4},{"$f":"'Intervalos de Tempo'!E4","v":"06:15:00"},{"$f":"IFERROR(INDEX(AgendadorDeEventos[],MATCH(DATEVALUE(ValdaData)&AgendaDiária[[#This Row],[Hora]],ProcurarDataEHora,0),3),\"\")","v":""},null,null,{"$f":"IFERROR(INDEX(AgendadorDeEventos[],MATCH($H$6&\"|\"&ROW(A3),AgendadorDeEventos[VALOR EXCLUSIVO (CALCULADO)],0),2),\"\")","v":""},{"$f":"IFERROR(INDEX(AgendadorDeEventos[],MATCH($H$6&\"|\"&ROW(A3),AgendadorDeEventos[VALOR EXCLUSIVO (CALCULADO)],0),3),\"\")","v":""}]
[{"$nulls":4},{"$f":"'Intervalos de Tempo'!E5","v":"06:30:00"},{"$f":"IFERROR(INDEX(AgendadorDeEventos[],MATCH(DATEVALUE(ValdaData)&AgendaDiária[[#This Row],[Hora]],ProcurarDataEHora,0),3),\"\")","v":"Tomar banho"},null,{"$f":"IFERROR(ValdaData+1,\"\")","v":"2022-06-21"},{"$f":"IFERROR(INDEX(AgendadorDeEventos[],MATCH($H$6&\"|\"&ROW(A4),AgendadorDeEventos[VALOR EXCLUSIVO (CALCULADO)],0),2),\"\")","v":""},{"$f":"IFERROR(INDEX(AgendadorDeEventos[],MATCH($H$6&\"|\"&ROW(A4),AgendadorDeEventos[VALOR EXCLUSIVO (CALCULADO)],0),3),\"\")","v":""},null,null,"Ligar para a empresa de TV a Cabo"]
[null,{"$f":"IFERROR(TEXT(ValdaData,\"dddd\"),\"\")","v":"segunda-feira"},null,null,{"$f":"'Intervalos de Tempo'!E6","v":"06:45:00"},{"$f":"IFERROR(INDEX(AgendadorDeEventos[],MATCH(DATEVALUE(ValdaData)&AgendaDiária[[#This Row],[Hora]],ProcurarDataEHora,0),3),\"\")","v":""},null,null,{"$f":"IFERROR(INDEX(AgendadorDeEventos[],MATCH($H$6&\"|\"&ROW(A5),AgendadorDeEventos[VALOR EXCLUSIVO (CALCULADO)],0),2),\"\")","v":""},{"$f":"IFERROR(INDEX(AgendadorDeEventos[],MATCH($H$6&\"|\"&ROW(A5),AgendadorDeEventos[VALOR EXCLUSIVO (CALCULADO)],0),3),\"\")","v":""}]
[{"$nulls":4},{"$f":"'Intervalos de Tempo'!E7","v":"07:00:00"},{"$f":"IFERROR(INDEX(AgendadorDeEventos[],MATCH(DATEVALUE(ValdaData)&AgendaDiária[[#This Row],[Hora]],ProcurarDataEHora,0),3),\"\")","v":""},null,null,{"$f":"IFERROR(INDEX(AgendadorDeEventos[],MATCH($H$6&\"|\"&ROW(A6),AgendadorDeEventos[VALOR EXCLUSIVO (CALCULADO)],0),2),\"\")","v":""},{"$f":"IFERROR(INDEX(AgendadorDeEventos[],MATCH($H$6&\"|\"&ROW(A6),AgendadorDeEventos[VALOR EXCLUSIVO (CALCULADO)],0),3),\"\")","v":""}]
[{"$nulls":4},{"$f":"'Intervalos de Tempo'!E8","v":"07:15:00"},{"$f":"IFERROR(INDEX(AgendadorDeEventos[],MATCH(DATEVALUE(ValdaData)&AgendaDiária[[#This Row],[Hora]],ProcurarDataEHora,0),3),\"\")","v":""},null,{"$f":"IFERROR(TEXT(DATEVALUE(ValdaData)+2,\"dddd\"),\"\")","v":"quarta-feira"},{"$f":"IFERROR(INDEX(AgendadorDeEventos[],MATCH($H$12&\"|\"&ROW(A1),AgendadorDeEventos[VALOR EXCLUSIVO (CALCULADO)],0),2),\"\")","v":""},{"$f":"IFERROR(INDEX(AgendadorDeEventos[],MATCH($H$12&\"|\"&ROW(A1),AgendadorDeEventos[VALOR EXCLUSIVO (CALCULADO)],0),3),\"\")","v":""}]
[{"$nulls":4},{"$f":"'Intervalos de Tempo'!E9","v":"07:30:00"},{"$f":"IFERROR(INDEX(AgendadorDeEventos[],MATCH(DATEVALUE(ValdaData)&AgendaDiária[[#This Row],[Hora]],ProcurarDataEHora,0),3),\"\")","v":"Sair para trabalhar"},null,{"$f":"IFERROR(TEXT(DATEVALUE(ValdaData)+2,\"d\"),\"\")","v":"22"},{"$f":"IFERROR(INDEX(AgendadorDeEventos[],MATCH($H$12&\"|\"&ROW(A2),AgendadorDeEventos[VALOR EXCLUSIVO (CALCULADO)],0),2),\"\")","v":""},{"$f":"IFERROR(INDEX(AgendadorDeEventos[],MATCH($H$12&\"|\"&ROW(A2),AgendadorDeEventos[VALOR EXCLUSIVO (CALCULADO)],0),3),\"\")","v":""}]
[null,"EXIBIR AGENDA",null,null,{"$f":"'Intervalos de Tempo'!E10","v":"07:45:00"},{"$f":"IFERROR(INDEX(AgendadorDeEventos[],MATCH(DATEVALUE(ValdaData)&AgendaDiária[[#This Row],[Hora]],ProcurarDataEHora,0),3),\"\")","v":""},null,null,{"$f":"IFERROR(INDEX(AgendadorDeEventos[],MATCH($H$12&\"|\"&ROW(A3),AgendadorDeEventos[VALOR EXCLUSIVO (CALCULADO)],0),2),\"\")","v":""},{"$f":"IFERROR(INDEX(AgendadorDeEventos[],MATCH($H$12&\"|\"&ROW(A3),AgendadorDeEventos[VALOR EXCLUSIVO (CALCULADO)],0),3),\"\")","v":""}]
[{"$nulls":4},{"$f":"'Intervalos de Tempo'!E11","v":"08:00:00"},{"$f":"IFERROR(INDEX(AgendadorDeEventos[],MATCH(DATEVALUE(ValdaData)&AgendaDiária[[#This Row],[Hora]],ProcurarDataEHora,0),3),\"\")","v":"Iniciar o turno"},null,{"$f":"IFERROR(ValdaData+2,\"\")","v":"2022-06-22"},{"$f":"IFERROR(INDEX(AgendadorDeEventos[],MATCH($H$12&\"|\"&ROW(A4),AgendadorDeEventos[VALOR EXCLUSIVO (CALCULADO)],0),2),\"\")","v":""},{"$f":"IFERROR(INDEX(AgendadorDeEventos[],MATCH($H$12&\"|\"&ROW(A4),AgendadorDeEventos[VALOR EXCLUSIVO (CALCULADO)],0),3),\"\")","v":""}]
[null,"Ano",null,null,{"$f":"'Intervalos de Tempo'!E12","v":"08:15:00"},{"$f":"IFERROR(INDEX(AgendadorDeEventos[],MATCH(DATEVALUE(ValdaData)&AgendaDiária[[#This Row],[Hora]],ProcurarDataEHora,0),3),\"\")","v":""},null,null,{"$f":"IFERROR(INDEX(AgendadorDeEventos[],MATCH($H$12&\"|\"&ROW(A5),AgendadorDeEventos[VALOR EXCLUSIVO (CALCULADO)],0),2),\"\")","v":""},{"$f":"IFERROR(INDEX(AgendadorDeEventos[],MATCH($H$12&\"|\"&ROW(A5),AgendadorDeEventos[VALOR EXCLUSIVO (CALCULADO)],0),3),\"\")","v":""}]
[{"$nulls":4},{"$f":"'Intervalos de Tempo'!E13","v":"08:30:00"},{"$f":"IFERROR(INDEX(AgendadorDeEventos[],MATCH(DATEVALUE(ValdaData)&AgendaDiária[[#This Row],[Hora]],ProcurarDataEHora,0),3),\"\")","v":""},null,null,{"$f":"IFERROR(INDEX(AgendadorDeEventos[],MATCH($H$12&\"|\"&ROW(A6),AgendadorDeEventos[VALOR EXCLUSIVO (CALCULADO)],0),2),\"\")","v":""},{"$f":"IFERROR(INDEX(AgendadorDeEventos[],MATCH($H$12&\"|\"&ROW(A6),AgendadorDeEventos[VALOR EXCLUSIVO (CALCULADO)],0),3),\"\")","v":""}]
[null,"Mês",null,null,{"$f":"'Intervalos de Tempo'!E14","v":"08:45:00"},{"$f":"IFERROR(INDEX(AgendadorDeEventos[],MATCH(DATEVALUE(ValdaData)&AgendaDiária[[#This Row],[Hora]],ProcurarDataEHora,0),3),\"\")","v":""},null,{"$f":"IFERROR(TEXT(DATEVALUE(ValdaData)+3,\"dddd\"),\"\")","v":"quinta-feira"},{"$f":"IFERROR(INDEX(AgendadorDeEventos[],MATCH($H$18&\"|\"&ROW(A1),AgendadorDeEventos[VALOR EXCLUSIVO (CALCULADO)],0),2),\"\")","v":""},{"$f":"IFERROR(INDEX(AgendadorDeEventos[],MATCH($H$18&\"|\"&ROW(A1),AgendadorDeEventos[VALOR EXCLUSIVO (CALCULADO)],0),3),\"\")","v":""}]
[{"$nulls":4},{"$f":"'Intervalos de Tempo'!E15","v":"09:00:00"},{"$f":"IFERROR(INDEX(AgendadorDeEventos[],MATCH(DATEVALUE(ValdaData)&AgendaDiária[[#This Row],[Hora]],ProcurarDataEHora,0),3),\"\")","v":""},null,{"$f":"IFERROR(TEXT(DATEVALUE(ValdaData)+3,\"d\"),\"\")","v":"23"},{"$f":"IFERROR(INDEX(AgendadorDeEventos[],MATCH($H$18&\"|\"&ROW(A2),AgendadorDeEventos[VALOR EXCLUSIVO (CALCULADO)],0),2),\"\")","v":""},{"$f":"IFERROR(INDEX(AgendadorDeEventos[],MATCH($H$18&\"|\"&ROW(A2),AgendadorDeEventos[VALOR EXCLUSIVO (CALCULADO)],0),3),\"\")","v":""}]
[null,"Dia",null,null,{"$f":"'Intervalos de Tempo'!E16","v":"09:15:00"},{"$f":"IFERROR(INDEX(AgendadorDeEventos[],MATCH(DATEVALUE(ValdaData)&AgendaDiária[[#This Row],[Hora]],ProcurarDataEHora,0),3),\"\")","v":""},null,null,{"$f":"IFERROR(INDEX(AgendadorDeEventos[],MATCH($H$18&\"|\"&ROW(A3),AgendadorDeEventos[VALOR EXCLUSIVO (CALCULADO)],0),2),\"\")","v":""},{"$f":"IFERROR(INDEX(AgendadorDeEventos[],MATCH($H$18&\"|\"&ROW(A3),AgendadorDeEventos[VALOR EXCLUSIVO (CALCULADO)],0),3),\"\")","v":""}]
[{"$nulls":4},{"$f":"'Intervalos de Tempo'!E17","v":"09:30:00"},{"$f":"IFERROR(INDEX(AgendadorDeEventos[],MATCH(DATEVALUE(ValdaData)&AgendaDiária[[#This Row],[Hora]],ProcurarDataEHora,0),3),\"\")","v":""},null,{"$f":"IFERROR(ValdaData+3,\"\")","v":"2022-06-23"},{"$f":"IFERROR(INDEX(AgendadorDeEventos[],MATCH($H$18&\"|\"&ROW(A4),AgendadorDeEventos[VALOR EXCLUSIVO (CALCULADO)],0),2),\"\")","v":""},{"$f":"IFERROR(INDEX(AgendadorDeEventos[],MATCH($H$18&\"|\"&ROW(A4),AgendadorDeEventos[VALOR EXCLUSIVO (CALCULADO)],0),3),\"\")","v":""}]
[null,"EDITAR AGENDA",null,null,{"$f":"'Intervalos de Tempo'!E18","v":"09:45:00"},{"$f":"IFERROR(INDEX(AgendadorDeEventos[],MATCH(DATEVALUE(ValdaData)&AgendaDiária[[#This Row],[Hora]],ProcurarDataEHora,0),3),\"\")","v":""},null,null,{"$f":"IFERROR(INDEX(AgendadorDeEventos[],MATCH($H$18&\"|\"&ROW(A5),AgendadorDeEventos[VALOR EXCLUSIVO (CALCULADO)],0),2),\"\")","v":""},{"$f":"IFERROR(INDEX(AgendadorDeEventos[],MATCH($H$18&\"|\"&ROW(A5),AgendadorDeEventos[VALOR EXCLUSIVO (CALCULADO)],0),3),\"\")","v":""}]
[{"$nulls":4},{"$f":"'Intervalos de Tempo'!E19","v":"10:00:00"},{"$f":"IFERROR(INDEX(AgendadorDeEventos[],MATCH(DATEVALUE(ValdaData)&AgendaDiária[[#This Row],[Hora]],ProcurarDataEHora,0),3),\"\")","v":"Intervalo"},null,null,{"$f":"IFERROR(INDEX(AgendadorDeEventos[],MATCH($H$18&\"|\"&ROW(A6),AgendadorDeEventos[VALOR EXCLUSIVO (CALCULADO)],0),2),\"\")","v":""},{"$f":"IFERROR(INDEX(AgendadorDeEventos[],MATCH($H$18&\"|\"&ROW(A6),AgendadorDeEventos[VALOR EXCLUSIVO (CALCULADO)],0),3),\"\")","v":""}]
[null,"Selecione para editar intervalos de tempo",null,null,{"$f":"'Intervalos de Tempo'!E20","v":"10:15:00"},{"$f":"IFERROR(INDEX(AgendadorDeEventos[],MATCH(DATEVALUE(ValdaData)&AgendaDiária[[#This Row],[Hora]],ProcurarDataEHora,0),3),\"\")","v":""},null,{"$f":"IFERROR(TEXT(DATEVALUE(ValdaData)+4,\"dddd\"),\"\")","v":"sexta-feira"},{"$f":"IFERROR(INDEX(AgendadorDeEventos[],MATCH($H$24&\"|\"&ROW(A1),AgendadorDeEventos[VALOR EXCLUSIVO (CALCULADO)],0),2),\"\")","v":""},{"$f":"IFERROR(INDEX(AgendadorDeEventos[],MATCH($H$24&\"|\"&ROW(A1),AgendadorDeEventos[VALOR EXCLUSIVO (CALCULADO)],0),3),\"\")","v":""}]
[{"$nulls":4},{"$f":"'Intervalos de Tempo'!E21","v":"10:30:00"},{"$f":"IFERROR(INDEX(AgendadorDeEventos[],MATCH(DATEVALUE(ValdaData)&AgendaDiária[[#This Row],[Hora]],ProcurarDataEHora,0),3),\"\")","v":""},null,{"$f":"IFERROR(TEXT(DATEVALUE(ValdaData)+4,\"d\"),\"\")","v":"24"},{"$f":"IFERROR(INDEX(AgendadorDeEventos[],MATCH($H$24&\"|\"&ROW(A2),AgendadorDeEventos[VALOR EXCLUSIVO (CALCULADO)],0),2),\"\")","v":""},{"$f":"IFERROR(INDEX(AgendadorDeEventos[],MATCH($H$24&\"|\"&ROW(A2),AgendadorDeEventos[VALOR EXCLUSIVO (CALCULADO)],0),3),\"\")","v":""}]
[null,"Selecione para adicionar um novo evento",null,null,{"$f":"'Intervalos de Tempo'!E22","v":"10:45:00"},{"$f":"IFERROR(INDEX(AgendadorDeEventos[],MATCH(DATEVALUE(ValdaData)&AgendaDiária[[#This Row],[Hora]],ProcurarDataEHora,0),3),\"\")","v":""},null,null,{"$f":"IFERROR(INDEX(AgendadorDeEventos[],MATCH($H$24&\"|\"&ROW(A3),AgendadorDeEventos[VALOR EXCLUSIVO (CALCULADO)],0),2),\"\")","v":""},{"$f":"IFERROR(INDEX(AgendadorDeEventos[],MATCH($H$24&\"|\"&ROW(A3),AgendadorDeEventos[VALOR EXCLUSIVO (CALCULADO)],0),3),\"\")","v":""}]
[{"$nulls":4},{"$f":"'Intervalos de Tempo'!E23","v":"11:00:00"},{"$f":"IFERROR(INDEX(AgendadorDeEventos[],MATCH(DATEVALUE(ValdaData)&AgendaDiária[[#This Row],[Hora]],ProcurarDataEHora,0),3),\"\")","v":""},null,{"$f":"IFERROR(ValdaData+4,\"\")","v":"2022-06-24"},{"$f":"IFERROR(INDEX(AgendadorDeEventos[],MATCH($H$24&\"|\"&ROW(A4),AgendadorDeEventos[VALOR EXCLUSIVO (CALCULADO)],0),2),\"\")","v":""},{"$f":"IFERROR(INDEX(AgendadorDeEventos[],MATCH($H$24&\"|\"&ROW(A4),AgendadorDeEventos[VALOR EXCLUSIVO (CALCULADO)],0),3),\"\")","v":""}]
[null,"REALÇAR NA AGENDA:",null,null,{"$f":"'Intervalos de Tempo'!E24","v":"11:15:00"},{"$f":"IFERROR(INDEX(AgendadorDeEventos[],MATCH(DATEVALUE(ValdaData)&AgendaDiária[[#This Row],[Hora]],ProcurarDataEHora,0),3),\"\")","v":""},null,null,{"$f":"IFERROR(INDEX(AgendadorDeEventos[],MATCH($H$24&\"|\"&ROW(A5),AgendadorDeEventos[VALOR EXCLUSIVO (CALCULADO)],0),2),\"\")","v":""},{"$f":"IFERROR(INDEX(AgendadorDeEventos[],MATCH($H$24&\"|\"&ROW(A5),AgendadorDeEventos[VALOR EXCLUSIVO (CALCULADO)],0),3),\"\")","v":""}]
[null,"Intervalo",null,null,{"$f":"'Intervalos de Tempo'!E25","v":"11:30:00"},{"$f":"IFERROR(INDEX(AgendadorDeEventos[],MATCH(DATEVALUE(ValdaData)&AgendaDiária[[#This Row],[Hora]],ProcurarDataEHora,0),3),\"\")","v":""},null,{"$f":"IFERROR(TEXT(DATEVALUE(ValdaData)+5,\"dddd\"),\"\")","v":"sábado"},{"$f":"IFERROR(INDEX(AgendadorDeEventos[],MATCH($H$29&\"|\"&ROW(A1),AgendadorDeEventos[VALOR EXCLUSIVO (CALCULADO)],0),2),\"\")","v":""},{"$f":"IFERROR(INDEX(AgendadorDeEventos[],MATCH($H$29&\"|\"&ROW(A1),AgendadorDeEventos[VALOR EXCLUSIVO (CALCULADO)],0),3),\"\")","v":""}]
[{"$nulls":4},{"$f":"'Intervalos de Tempo'!E26","v":"11:45:00"},{"$f":"IFERROR(INDEX(AgendadorDeEventos[],MATCH(DATEVALUE(ValdaData)&AgendaDiária[[#This Row],[Hora]],ProcurarDataEHora,0),3),\"\")","v":""},null,{"$f":"IFERROR(TEXT(DATEVALUE(ValdaData)+5,\"d\"),\"\")","v":"25"},{"$f":"IFERROR(INDEX(AgendadorDeEventos[],MATCH($H$29&\"|\"&ROW(A2),AgendadorDeEventos[VALOR EXCLUSIVO (CALCULADO)],0),2),\"\")","v":""},{"$f":"IFERROR(INDEX(AgendadorDeEventos[],MATCH($H$29&\"|\"&ROW(A2),AgendadorDeEventos[VALOR EXCLUSIVO (CALCULADO)],0),3),\"\")","v":""}]
[{"$nulls":4},{"$f":"'Intervalos de Tempo'!E27","v":"12:00:00"},{"$f":"IFERROR(INDEX(AgendadorDeEventos[],MATCH(DATEVALUE(ValdaData)&AgendaDiária[[#This Row],[Hora]],ProcurarDataEHora,0),3),\"\")","v":"Almoço"},null,null,{"$f":"IFERROR(INDEX(AgendadorDeEventos[],MATCH($H$29&\"|\"&ROW(A3),AgendadorDeEventos[VALOR EXCLUSIVO (CALCULADO)],0),2),\"\")","v":""},{"$f":"IFERROR(INDEX(AgendadorDeEventos[],MATCH($H$29&\"|\"&ROW(A3),AgendadorDeEventos[VALOR EXCLUSIVO (CALCULADO)],0),3),\"\")","v":""}]
[{"$nulls":4},{"$f":"'Intervalos de Tempo'!E28","v":"12:15:00"},{"$f":"IFERROR(INDEX(AgendadorDeEventos[],MATCH(DATEVALUE(ValdaData)&AgendaDiária[[#This Row],[Hora]],ProcurarDataEHora,0),3),\"\")","v":""},null,{"$f":"IFERROR(ValdaData+5,\"\")","v":"2022-06-25"},{"$f":"IFERROR(INDEX(AgendadorDeEventos[],MATCH($H$29&\"|\"&ROW(A4),AgendadorDeEventos[VALOR EXCLUSIVO (CALCULADO)],0),2),\"\")","v":""},{"$f":"IFERROR(INDEX(AgendadorDeEventos[],MATCH($H$29&\"|\"&ROW(A4),AgendadorDeEventos[VALOR EXCLUSIVO (CALCULADO)],0),3),\"\")","v":""}]
[{"$nulls":4},{"$f":"'Intervalos de Tempo'!E29","v":"12:30:00"},{"$f":"IFERROR(INDEX(AgendadorDeEventos[],MATCH(DATEVALUE(ValdaData)&AgendaDiária[[#This Row],[Hora]],ProcurarDataEHora,0),3),\"\")","v":""},null,null,{"$f":"IFERROR(INDEX(AgendadorDeEventos[],MATCH($H$29&\"|\"&ROW(A5),AgendadorDeEventos[VALOR EXCLUSIVO (CALCULADO)],0),2),\"\")","v":""},{"$f":"IFERROR(INDEX(AgendadorDeEventos[],MATCH($H$29&\"|\"&ROW(A5),AgendadorDeEventos[VALOR EXCLUSIVO (CALCULADO)],0),3),\"\")","v":""}]
[{"$nulls":4},{"$f":"'Intervalos de Tempo'!E30","v":"12:45:00"},{"$f":"IFERROR(INDEX(AgendadorDeEventos[],MATCH(DATEVALUE(ValdaData)&AgendaDiária[[#This Row],[Hora]],ProcurarDataEHora,0),3),\"\")","v":""},null,{"$f":"IFERROR(TEXT(DATEVALUE(ValdaData)+6,\"dddd\"),\"\")","v":"domingo"},{"$f":"IFERROR(INDEX(AgendadorDeEventos[],MATCH($H$34&\"|\"&ROW(A1),AgendadorDeEventos[VALOR EXCLUSIVO (CALCULADO)],0),2),\"\")","v":""},{"$f":"IFERROR(INDEX(AgendadorDeEventos[],MATCH($H$34&\"|\"&ROW(A1),AgendadorDeEventos[VALOR EXCLUSIVO (CALCULADO)],0),3),\"\")","v":""}]
[{"$nulls":4},{"$f":"'Intervalos de Tempo'!E31","v":"13:00:00"},{"$f":"IFERROR(INDEX(AgendadorDeEventos[],MATCH(DATEVALUE(ValdaData)&AgendaDiária[[#This Row],[Hora]],ProcurarDataEHora,0),3),\"\")","v":""},null,{"$f":"IFERROR(TEXT(DATEVALUE(ValdaData)+6,\"d\"),\"\")","v":"26"},{"$f":"IFERROR(INDEX(AgendadorDeEventos[],MATCH($H$34&\"|\"&ROW(A2),AgendadorDeEventos[VALOR EXCLUSIVO (CALCULADO)],0),2),\"\")","v":""},{"$f":"IFERROR(INDEX(AgendadorDeEventos[],MATCH($H$34&\"|\"&ROW(A2),AgendadorDeEventos[VALOR EXCLUSIVO (CALCULADO)],0),3),\"\")","v":""}]
[{"$nulls":4},{"$f":"'Intervalos de Tempo'!E32","v":"13:15:00"},{"$f":"IFERROR(INDEX(AgendadorDeEventos[],MATCH(DATEVALUE(ValdaData)&AgendaDiária[[#This Row],[Hora]],ProcurarDataEHora,0),3),\"\")","v":""},null,null,{"$f":"IFERROR(INDEX(AgendadorDeEventos[],MATCH($H$34&\"|\"&ROW(A3),AgendadorDeEventos[VALOR EXCLUSIVO (CALCULADO)],0),2),\"\")","v":""},{"$f":"IFERROR(INDEX(AgendadorDeEventos[],MATCH($H$34&\"|\"&ROW(A3),AgendadorDeEventos[VALOR EXCLUSIVO (CALCULADO)],0),3),\"\")","v":""}]
[{"$nulls":4},{"$f":"'Intervalos de Tempo'!E33","v":"13:30:00"},{"$f":"IFERROR(INDEX(AgendadorDeEventos[],MATCH(DATEVALUE(ValdaData)&AgendaDiária[[#This Row],[Hora]],ProcurarDataEHora,0),3),\"\")","v":"Ligar para o comercial"},null,{"$f":"IFERROR(ValdaData+6,\"\")","v":"2022-06-26"},{"$f":"IFERROR(INDEX(AgendadorDeEventos[],MATCH($H$34&\"|\"&ROW(A4),AgendadorDeEventos[VALOR EXCLUSIVO (CALCULADO)],0),2),\"\")","v":""},{"$f":"IFERROR(INDEX(AgendadorDeEventos[],MATCH($H$34&\"|\"&ROW(A4),AgendadorDeEventos[VALOR EXCLUSIVO (CALCULADO)],0),3),\"\")","v":""}]
[{"$nulls":4},{"$f":"'Intervalos de Tempo'!E34","v":"13:45:00"},{"$f":"IFERROR(INDEX(AgendadorDeEventos[],MATCH(DATEVALUE(ValdaData)&AgendaDiária[[#This Row],[Hora]],ProcurarDataEHora,0),3),\"\")","v":""},null,null,{"$f":"IFERROR(INDEX(AgendadorDeEventos[],MATCH($H$34&\"|\"&ROW(A5),AgendadorDeEventos[VALOR EXCLUSIVO (CALCULADO)],0),2),\"\")","v":""},{"$f":"IFERROR(INDEX(AgendadorDeEventos[],MATCH($H$34&\"|\"&ROW(A5),AgendadorDeEventos[VALOR EXCLUSIVO (CALCULADO)],0),3),\"\")","v":""}]
[{"$nulls":4},{"$f":"'Intervalos de Tempo'!E35","v":"14:00:00"},{"$f":"IFERROR(INDEX(AgendadorDeEventos[],MATCH(DATEVALUE(ValdaData)&AgendaDiária[[#This Row],[Hora]],ProcurarDataEHora,0),3),\"\")","v":""}]
[{"$nulls":4},{"$f":"'Intervalos de Tempo'!E36","v":"14:15:00"},{"$f":"IFERROR(INDEX(AgendadorDeEventos[],MATCH(DATEVALUE(ValdaData)&AgendaDiária[[#This Row],[Hora]],ProcurarDataEHora,0),3),\"\")","v":""}]
[{"$nulls":4},{"$f":"'Intervalos de Tempo'!E37","v":"14:30:00"},{"$f":"IFERROR(INDEX(AgendadorDeEventos[],MATCH(DATEVALUE(ValdaData)&AgendaDiária[[#This Row],[Hora]],ProcurarDataEHora,0),3),\"\")","v":""}]
[{"$nulls":4},{"$f":"'Intervalos de Tempo'!E38","v":"14:45:00"},{"$f":"IFERROR(INDEX(AgendadorDeEventos[],MATCH(DATEVALUE(ValdaData)&AgendaDiária[[#This Row],[Hora]],ProcurarDataEHora,0),3),\"\")","v":""}]
[{"$nulls":4},{"$f":"'Intervalos de Tempo'!E39","v":"15:00:00"},{"$f":"IFERROR(INDEX(AgendadorDeEventos[],MATCH(DATEVALUE(ValdaData)&AgendaDiária[[#This Row],[Hora]],ProcurarDataEHora,0),3),\"\")","v":"Intervalo"}]
[{"$nulls":4},{"$f":"'Intervalos de Tempo'!E40","v":"15:15:00"},{"$f":"IFERROR(INDEX(AgendadorDeEventos[],MATCH(DATEVALUE(ValdaData)&AgendaDiária[[#This Row],[Hora]],ProcurarDataEHora,0),3),\"\")","v":""}]
[{"$nulls":4},{"$f":"'Intervalos de Tempo'!E41","v":"15:30:00"},{"$f":"IFERROR(INDEX(AgendadorDeEventos[],MATCH(DATEVALUE(ValdaData)&AgendaDiária[[#This Row],[Hora]],ProcurarDataEHora,0),3),\"\")","v":""}]
[{"$nulls":4},{"$f":"'Intervalos de Tempo'!E42","v":"15:45:00"},{"$f":"IFERROR(INDEX(AgendadorDeEventos[],MATCH(DATEVALUE(ValdaData)&AgendaDiária[[#This Row],[Hora]],ProcurarDataEHora,0),3),\"\")","v":""}]
[{"$nulls":4},{"$f":"'Intervalos de Tempo'!E43","v":"16:00:00"},{"$f":"IFERROR(INDEX(AgendadorDeEventos[],MATCH(DATEVALUE(ValdaData)&AgendaDiária[[#This Row],[Hora]],ProcurarDataEHora,0),3),\"\")","v":""}]
[{"$nulls":4},{"$f":"'Intervalos de Tempo'!E44","v":"16:15:00"},{"$f":"IFERROR(INDEX(AgendadorDeEventos[],MATCH(DATEVALUE(ValdaData)&AgendaDiária[[#This Row],[Hora]],ProcurarDataEHora,0),3),\"\")","v":""}]
[{"$nulls":4},{"$f":"'Intervalos de Tempo'!E45","v":"16:30:00"},{"$f":"IFERROR(INDEX(AgendadorDeEventos[],MATCH(DATEVALUE(ValdaData)&AgendaDiária[[#This Row],[Hora]],ProcurarDataEHora,0),3),\"\")","v":""}]
[{"$nulls":4},{"$f":"'Intervalos de Tempo'!E46","v":"16:45:00"},{"$f":"IFERROR(INDEX(AgendadorDeEventos[],MATCH(DATEVALUE(ValdaData)&AgendaDiária[[#This Row],[Hora]],ProcurarDataEHora,0),3),\"\")","v":""}]
[{"$nulls":4},{"$f":"'Intervalos de Tempo'!E47","v":"17:00:00"},{"$f":"IFERROR(INDEX(AgendadorDeEventos[],MATCH(DATEVALUE(ValdaData)&AgendaDiária[[#This Row],[Hora]],ProcurarDataEHora,0),3),\"\")","v":"Ir para casa"}]
[{"$nulls":4},{"$f":"'Intervalos de Tempo'!E48","v":"17:15:00"},{"$f":"IFERROR(INDEX(AgendadorDeEventos[],MATCH(DATEVALUE(ValdaData)&AgendaDiária[[#This Row],[Hora]],ProcurarDataEHora,0),3),\"\")","v":""}]
[{"$nulls":4},{"$f":"'Intervalos de Tempo'!E49","v":"17:30:00"},{"$f":"IFERROR(INDEX(AgendadorDeEventos[],MATCH(DATEVALUE(ValdaData)&AgendaDiária[[#This Row],[Hora]],ProcurarDataEHora,0),3),\"\")","v":""}]
[{"$nulls":4},{"$f":"'Intervalos de Tempo'!E50","v":"17:45:00"},{"$f":"IFERROR(INDEX(AgendadorDeEventos[],MATCH(DATEVALUE(ValdaData)&AgendaDiária[[#This Row],[Hora]],ProcurarDataEHora,0),3),\"\")","v":""}]
[{"$nulls":4},{"$f":"'Intervalos de Tempo'!E51","v":"18:00:00"},{"$f":"IFERROR(INDEX(AgendadorDeEventos[],MATCH(DATEVALUE(ValdaData)&AgendaDiária[[#This Row],[Hora]],ProcurarDataEHora,0),3),\"\")","v":"Treino de futebol"}]
[{"$nulls":4},{"$f":"'Intervalos de Tempo'!E52","v":"18:15:00"},{"$f":"IFERROR(INDEX(AgendadorDeEventos[],MATCH(DATEVALUE(ValdaData)&AgendaDiária[[#This Row],[Hora]],ProcurarDataEHora,0),3),\"\")","v":""}]
[{"$nulls":4},{"$f":"'Intervalos de Tempo'!E53","v":"18:30:00"},{"$f":"IFERROR(INDEX(AgendadorDeEventos[],MATCH(DATEVALUE(ValdaData)&AgendaDiária[[#This Row],[Hora]],ProcurarDataEHora,0),3),\"\")","v":""}]
[{"$nulls":4},{"$f":"'Intervalos de Tempo'!E54","v":"18:45:00"},{"$f":"IFERROR(INDEX(AgendadorDeEventos[],MATCH(DATEVALUE(ValdaData)&AgendaDiária[[#This Row],[Hora]],ProcurarDataEHora,0),3),\"\")","v":""}]
[{"$nulls":4},{"$f":"'Intervalos de Tempo'!E55","v":"19:00:00"},{"$f":"IFERROR(INDEX(AgendadorDeEventos[],MATCH(DATEVALUE(ValdaData)&AgendaDiária[[#This Row],[Hora]],ProcurarDataEHora,0),3),\"\")","v":""}]
[{"$nulls":4},{"$f":"'Intervalos de Tempo'!E56","v":"19:15:00"},{"$f":"IFERROR(INDEX(AgendadorDeEventos[],MATCH(DATEVALUE(ValdaData)&AgendaDiária[[#This Row],[Hora]],ProcurarDataEHora,0),3),\"\")","v":""}]
[{"$nulls":4},{"$f":"'Intervalos de Tempo'!E57","v":"19:30:00"},{"$f":"IFERROR(INDEX(AgendadorDeEventos[],MATCH(DATEVALUE(ValdaData)&AgendaDiária[[#This Row],[Hora]],ProcurarDataEHora,0),3),\"\")","v":""}]
[{"$nulls":4},{"$f":"'Intervalos de Tempo'!E58","v":"19:45:00"},{"$f":"IFERROR(INDEX(AgendadorDeEventos[],MATCH(DATEVALUE(ValdaData)&AgendaDiária[[#This Row],[Hora]],ProcurarDataEHora,0),3),\"\")","v":""}]
[{"$nulls":4},{"$f":"'Intervalos de Tempo'!E59","v":"20:00:00"},{"$f":"IFERROR(INDEX(AgendadorDeEventos[],MATCH(DATEVALUE(ValdaData)&AgendaDiária[[#This Row],[Hora]],ProcurarDataEHora,0),3),\"\")","v":""}]
[{"$nulls":4},{"$f":"'Intervalos de Tempo'!E60","v":"20:15:00"},{"$f":"IFERROR(INDEX(AgendadorDeEventos[],MATCH(DATEVALUE(ValdaData)&AgendaDiária[[#This Row],[Hora]],ProcurarDataEHora,0),3),\"\")","v":""}]
[{"$nulls":4},{"$f":"'Intervalos de Tempo'!E61","v":"20:30:00"},{"$f":"IFERROR(INDEX(AgendadorDeEventos[],MATCH(DATEVALUE(ValdaData)&AgendaDiária[[#This Row],[Hora]],ProcurarDataEHora,0),3),\"\")","v":""}]
[{"$nulls":4},{"$f":"'Intervalos de Tempo'!E62","v":"20:45:00"},{"$f":"IFERROR(INDEX(AgendadorDeEventos[],MATCH(DATEVALUE(ValdaData)&AgendaDiária[[#This Row],[Hora]],ProcurarDataEHora,0),3),\"\")","v":""}]
[{"$nulls":4},{"$f":"'Intervalos de Tempo'!E63","v":"21:00:00"},{"$f":"IFERROR(INDEX(AgendadorDeEventos[],MATCH(DATEVALUE(ValdaData)&AgendaDiária[[#This Row],[Hora]],ProcurarDataEHora,0),3),\"\")","v":""}]
[{"$nulls":4},{"$f":"'Intervalos de Tempo'!E64","v":""},{"$f":"IFERROR(INDEX(AgendadorDeEventos[],MATCH(DATEVALUE(ValdaData)&AgendaDiária[[#This Row],[Hora]],ProcurarDataEHora,0),3),\"\")","v":""}]
[{"$nulls":4},{"$f":"'Intervalos de Tempo'!E65","v":""},{"$f":"IFERROR(INDEX(AgendadorDeEventos[],MATCH(DATEVALUE(ValdaData)&AgendaDiária[[#This Row],[Hora]],ProcurarDataEHora,0),3),\"\")","v":""}]
[{"$nulls":4},{"$f":"'Intervalos de Tempo'!E66","v":""},{"$f":"IFERROR(INDEX(AgendadorDeEventos[],MATCH(DATEVALUE(ValdaData)&AgendaDiária[[#This Row],[Hora]],ProcurarDataEHora,0),3),\"\")","v":""}]
[{"$nulls":4},{"$f":"'Intervalos de Tempo'!E67","v":""},{"$f":"IFERROR(INDEX(AgendadorDeEventos[],MATCH(DATEVALUE(ValdaData)&AgendaDiária[[#This Row],[Hora]],ProcurarDataEHora,0),3),\"\")","v":""}]
[{"$nulls":4},{"$f":"'Intervalos de Tempo'!E68","v":""},{"$f":"IFERROR(INDEX(AgendadorDeEventos[],MATCH(DATEVALUE(ValdaData)&AgendaDiária[[#This Row],[Hora]],ProcurarDataEHora,0),3),\"\")","v":""}]
[{"$nulls":4},{"$f":"'Intervalos de Tempo'!E69","v":""},{"$f":"IFERROR(INDEX(AgendadorDeEventos[],MATCH(DATEVALUE(ValdaData)&AgendaDiária[[#This Row],[Hora]],ProcurarDataEHora,0),3),\"\")","v":""}]
[{"$nulls":4},{"$f":"'Intervalos de Tempo'!E70","v":""},{"$f":"IFERROR(INDEX(AgendadorDeEventos[],MATCH(DATEVALUE(ValdaData)&AgendaDiária[[#This Row],[Hora]],ProcurarDataEHora,0),3),\"\")","v":""}]
[{"$nulls":4},{"$f":"'Intervalos de Tempo'!E71","v":""},{"$f":"IFERROR(INDEX(AgendadorDeEventos[],MATCH(DATEVALUE(ValdaData)&AgendaDiária[[#This Row],[Hora]],ProcurarDataEHora,0),3),\"\")","v":""}]
[{"$nulls":4},{"$f":"'Intervalos de Tempo'!E72","v":""},{"$f":"IFERROR(INDEX(AgendadorDeEventos[],MATCH(DATEVALUE(ValdaData)&AgendaDiária[[#This Row],[Hora]],ProcurarDataEHora,0),3),\"\")","v":""}]
[{"$nulls":4},{"$f":"'Intervalos de Tempo'!E73","v":""},{"$f":"IFERROR(INDEX(AgendadorDeEventos[],MATCH(DATEVALUE(ValdaData)&AgendaDiária[[#This Row],[Hora]],ProcurarDataEHora,0),3),\"\")","v":""}]
[{"$nulls":4},{"$f":"'Intervalos de Tempo'!E74","v":""},{"$f":"IFERROR(INDEX(AgendadorDeEventos[],MATCH(DATEVALUE(ValdaData)&AgendaDiária[[#This Row],[Hora]],ProcurarDataEHora,0),3),\"\")","v":""}]
[{"$nulls":4},{"$f":"'Intervalos de Tempo'!E75","v":""},{"$f":"IFERROR(INDEX(AgendadorDeEventos[],MATCH(DATEVALUE(ValdaData)&AgendaDiária[[#This Row],[Hora]],ProcurarDataEHora,0),3),\"\")","v":""}]

{"sheet":"Agendador de Eventos","index":1,"n_rows":15,"n_cols":8,"rows_kept":15,"merged":[[0,1,0,2],[1,1,4,2],[5,1,6,2],[7,1,7,2]]}
[null,"Agendador de Eventos"]
[null,{"$f":"DAY(ValdaData)","v":20},null,null,"DATA","HORA","DESCRIÇÃO","VALOR EXCLUSIVO (CALCULADO)"]
[{"$nulls":4},{"$f":"TODAY()","v":"2022-06-20"},"06:00:00","Acordar",{"$f":"AgendadorDeEventos[[#This Row],[DATA]]&\"|\"&COUNTIF($E$3:E3,E3)","v":"44732|1"}]
[{"$nulls":4},{"$f":"TODAY()","v":"2022-06-20"},"06:30:00","Tomar banho",{"$f":"AgendadorDeEventos[[#This Row],[DATA]]&\"|\"&COUNTIF($E$3:E4,E4)","v":"44732|2"}]
[{"$nulls":4},"2022-06-20","07:30:00","Sair para trabalhar",{"$f":"AgendadorDeEventos[[#This Row],[DATA]]&\"|\"&COUNTIF($E$3:E5,E5)","v":"44732|3"}]
[null,{"$f":"TEXT(ValdaData,\"dddd\")","v":"segunda-feira"},null,null,"2022-06-20","08:00:00","Iniciar o turno",{"$f":"AgendadorDeEventos[[#This Row],[DATA]]&\"|\"&COUNTIF($E$3:E6,E6)","v":"44732|4"}]
[{"$nulls":4},"2022-06-20","10:00:00","Intervalo",{"$f":"AgendadorDeEventos[[#This Row],[DATA]]&\"|\"&COUNTIF($E$3:E7,E7)","v":"44732|5"}]
[null,{"$f":"ValdaData","v":"20-JUN-22"},null,null,"2022-06-20","12:00:00","Almoço",{"$f":"AgendadorDeEventos[[#This Row],[DATA]]&\"|\"&COUNTIF($E$3:E8,E8)","v":"44732|6"}]
[{"$nulls":4},"2022-06-20","13:00:00","Voltar ao trabalho",{"$f":"AgendadorDeEventos[[#This Row],[DATA]]&\"|\"&COUNTIF($E$3:E9,E9)","v":"44732|7"}]
[null,"Selecione para editar intervalos de tempo",null,null,"2022-06-20","13:30:00","Ligar para o comercial",{"$f":"AgendadorDeEventos[[#This Row],[DATA]]&\"|\"&COUNTIF($E$3:E10,E10)","v":"44732|8"}]
[{"$nulls":4},"2022-06-20","15:00:00","Intervalo",{"$f":"AgendadorDeEventos[[#This Row],[DATA]]&\"|\"&COUNTIF($E$3:E11,E11)","v":"44732|9"}]
[null,"Selecione para exibir a Agenda Diária",null,null,"2022-06-20","17:00:00","Ir para casa",{"$f":"AgendadorDeEventos[[#This Row],[DATA]]&\"|\"&COUNTIF($E$3:E12,E12)","v":"44732|10"}]
[{"$nulls":4},"2022-06-20","18:00:00","Treino de futebol",{"$f":"AgendadorDeEventos[[#This Row],[DATA]]&\"|\"&COUNTIF($E$3:E13,E13)","v":"44732|11"}]
[{"$nulls":4},{"$f":"TODAY()+1","v":"2022-06-21"},"06:30:00","Café da manhã",{"$f":"AgendadorDeEventos[[#This Row],[DATA]]&\"|\"&COUNTIF($E$3:E15,E14)","v":"44733|2"}]
[{"$nulls":4},{"$f":"TODAY()+1","v":"2022-06-21"},"07:30:00","Sair para trabalhar",{"$f":"AgendadorDeEventos[[#This Row],[DATA]]&\"|\"&COUNTIF($E$3:E15,E15)","v":"44733|2"}]

{"sheet":"Intervalos de Tempo","index":2,"n_rows":75,"n_cols":5,"rows_kept":75,"merged":[[0,1,0,2],[1,1,1,2],[9,1,9,2]]}
[null,"Intervalos de Tempo"]
[null,"EDITAR HORÁRIO",null,null,"Hora"]
[{"$nulls":4},{"$f":"Hora_de_início","v":"06:00:00"}]
[null,"Hora de início","06:00:00",null,{"$f":"IFERROR(IF($E3+Incremento>HoraDeTérmino,\"\",$E3+Incremento),\"\")","v":"06:15:00"}]
[{"$nulls":4},{"$f":"IFERROR(IF($E4+Incremento>HoraDeTérmino,\"\",$E4+Incremento),\"\")","v":"06:30:00"}]
[null,"Intervalo","15 MIN",null,"06:45:00"]
[{"$nulls":4},"07:00:00"]
[null,"Hora de término","21:00:00",null,"07:15:00"]
[{"$nulls":4},"07:30:00"]
[null,"EXIBIR AGENDA",null,null,"07:45:00"]
[{"$nulls":4},"08:00:00"]
[null,"Selecione para exibir a Agenda Diária",null,null,"08:15:00"]
[{"$nulls":4},"08:30:00"]
[null,"Selecione para adicionar um novo evento",null,null,"08:45:00"]
[{"$nulls":4},"09:00:00"]
[{"$nulls":4},{"$f":"IFERROR(IF($E15+Incremento>HoraDeTérmino,\"\",$E15+Incremento),\"\")","v":"09:15:00"}]
[{"$nulls":4},"09:30:00"]
[{"$nulls":4},"09:45:00"]
[{"$nulls":4},"10:00:00"]
[{"$nulls":4},"10:15:00"]
[{"$nulls":4},"10:30:00"]
[{"$nulls":4},"10:45:00"]
[{"$nulls":4},"11:00:00"]
[{"$nulls":4},"11:15:00"]
[{"$nulls":4},"11:30:00"]
[{"$nulls":4},"11:45:00"]
[{"$nulls":4},"12:00:00"]
[{"$nulls":4},"12:15:00"]
[{"$nulls":4},"12:30:00"]
[{"$nulls":4},"12:45:00"]
[{"$nulls":4},"13:00:00"]
[{"$nulls":4},"13:15:00"]
[{"$nulls":4},"13:30:00"]
[{"$nulls":4},"13:45:00"]
[{"$nulls":4},"14:00:00"]
[{"$nulls":4},{"$f":"IFERROR(IF($E35+Incremento>HoraDeTérmino,\"\",$E35+Incremento),\"\")","v":"14:15:00"}]
[{"$nulls":4},"14:30:00"]
[{"$nulls":4},"14:45:00"]
[{"$nulls":4},"15:00:00"]
[{"$nulls":4},"15:15:00"]
[{"$nulls":4},"15:30:00"]
[{"$nulls":4},"15:45:00"]
[{"$nulls":4},"16:00:00"]
[{"$nulls":4},"16:15:00"]
[{"$nulls":4},"16:30:00"]
[{"$nulls":4},"16:45:00"]
[{"$nulls":4},"17:00:00"]
[{"$nulls":4},"17:15:00"]
[{"$nulls":4},"17:30:00"]
[{"$nulls":4},"17:45:00"]
[{"$nulls":4},"18:00:00"]
[{"$nulls":4},"18:15:00"]
[{"$nulls":4},"18:30:00"]
[{"$nulls":4},"18:45:00"]
[{"$nulls":4},"19:00:00"]
[{"$nulls":4},"19:15:00"]
[{"$nulls":4},"19:30:00"]
[{"$nulls":4},"19:45:00"]
[{"$nulls":4},"20:00:00"]
[{"$nulls":4},"20:15:00"]
[{"$nulls":4},"20:30:00"]
[{"$nulls":4},"20:45:00"]
[{"$nulls":4},"21:00:00"]
[{"$nulls":4},""]
[{"$nulls":4},""]
[{"$nulls":4},""]
[{"$nulls":4},""]
[{"$nulls":4},{"$f":"IFERROR(IF($E67+Incremento>HoraDeTérmino,\"\",$E67+Incremento),\"\")","v":""}]
[{"$nulls":4},""]
[{"$nulls":4},""]
[{"$nulls":4},""]
[{"$nulls":4},""]
[{"$nulls":4},""]
[{"$nulls":4},""]
[{"$nulls":4},""]